bitfinex/quotes_SOLUSD_20250717
["timestamp","ask_amount","ask_price","bid_price","bid_amount"]
[1752727293430,17.46468397,170.85,170.84,0.06]
[1752727294699,23.31777147,170.85,170.84,3.28625785]
[1752727295086,5.8530875,170.85,170.84,3.28625785]
[1752727295398,5.8530875,170.85,170.84,3.95625785]
[1752727296295,5.88274493,170.86,170.84,3.95625785]
[1752727296480,5.88274493,170.86,170.85,3.89625785]
[1752727296687,6.56274493,170.86,170.85,3.22625785]
[1752727297095,5.88274493,170.86,170.85,3.22625785]
[1752727297300,5.88274493,170.86,170.84,0.06]
[1752727297502,5.88274493,170.86,170.85,3.22625785]
[1752727300700,16.78468397,170.85,170.84,0.06]
[1752727300897,17.46468397,170.85,170.84,0.06]
[1752727301104,47.26468397,170.85,170.84,0.06]
[1752727301911,53.11777147,170.85,170.84,0.06]
[1752727303010,5.8530875,170.85,170.84,5.10349767]
[1752727303210,5.8530875,170.85,170.84,5.77349767]
[1752727304018,5.88274493,170.86,170.84,5.77349767]
[1752727304320,5.88274493,170.86,170.85,5.04349767]
[1752727305436,0.03,170.86,170.85,5.04349767]
[1752727307333,0.03,170.86,170.85,5.10349767]
[1752727308227,0.03,170.86,170.85,5.77349767]
[1752727314518,0.03,170.86,170.85,31.77349767]
[1752727316434,0.03,170.86,170.85,26.73]
[1752727316933,0.03,170.86,170.85,31.77349767]
[1752727320131,0.03,170.89,170.85,11.62658517]
[1752727320311,0.03,170.89,170.88,5.04349767]
[1752727320826,0.03,170.89,170.88,5.71349767]
[1752727327136,0.03,170.89,170.88,26.67]
[1752727327339,0.03,170.89,170.88,31.71349767]
[1752727331042,0.03,170.89,170.88,37.56555759]
[1752727331635,0.03,170.91,170.88,42.60905526]
[1752727331838,0.03,170.91,170.9,36.08699534]
[1752727332136,0.03,170.91,170.9,10.08699534]
[1752727332341,0.03,170.91,170.9,10.75699534]
[1752727333134,0.1,170.93,170.92,26.0]
[1752727333470,0.1,170.97,170.92,60.80349767]
[1752727333661,0.1,170.97,170.96,31.04349767]
[1752727333816,6.60815836,171.0,170.96,26.0]
[1752727334140,20.5680414,171.0,170.98,5.04349767]
[1752727334343,20.5680414,171.0,170.97,5.04349767]
[1752727334547,0.66,170.99,170.97,5.04349767]
[1752727334762,0.66,170.99,170.98,5.04349767]
[1752727335064,16.78468397,170.98,170.96,5.04349767]
[1752727335236,0.66,170.98,170.97,5.04349767]
[1752727335559,6.60815836,171.0,170.97,5.04349767]
[1752727335752,6.60815836,171.0,170.99,5.04349767]
[1752727337859,6.60815836,171.0,170.98,5.04349767]
[1752727338061,0.66,170.99,170.98,5.04349767]
[1752727338640,6.50829522,170.99,170.98,5.04349767]
[1752727340367,6.50829522,170.99,170.96,5.04349767]
[1752727340368,16.78468397,170.98,170.96,5.04349767]
[1752727340664,0.66,170.97,170.96,5.04349767]
[1752727340868,6.50897935,170.97,170.96,5.04349767]
[1752727342552,5.84897935,170.97,170.96,5.04349767]
[1752727343041,6.50897935,170.97,170.96,5.04349767]
[1752727343773,6.50897935,170.97,170.94,26.0]
[1752727343976,6.50897935,170.97,170.96,5.04349767]
[1752727344640,5.84897935,170.97,170.96,5.04349767]
[1752727345345,5.84866099,170.98,170.96,5.71349767]
[1752727345546,5.84866099,170.98,170.97,5.04349767]
[1752727346478,5.84829522,170.99,170.97,5.04349767]
[1752727348167,5.94806774,171.0,170.98,5.71349767]
[1752727348344,5.94806774,171.0,170.99,5.04349767]
[1752727348864,5.94806774,171.0,170.99,5.71349767]
[1752727349244,5.94806774,171.0,170.99,5.04349767]
[1752727349657,5.94806774,171.0,170.99,5.71349767]
[1752727350653,5.94806774,171.0,170.99,5.04349767]
[1752727353501,6.65806774,171.0,170.99,5.04349767]
[1752727354859,5.94806774,171.0,170.99,5.04349767]
[1752727358465,5.94806774,171.0,170.99,5.71349767]
[1752727359075,5.94806774,171.0,170.99,5.04349767]
[1752727361384,0.1,171.0,170.99,5.04349767]
[1752727361968,0.1,171.0,170.99,26.0]
[1752727362479,0.1,171.0,170.99,31.04349767]
[1752727363096,5.94809664,171.0,170.99,31.04349767]
[1752727370990,5.94809664,171.0,170.99,29.22169102]
[1752727377994,5.94809664,171.0,170.97,0.06]
[1752727377995,21.28797968,171.0,170.97,0.06]
[1752727378177,20.56797968,171.0,170.97,3.28169102]
[1752727378376,0.72,170.99,170.97,29.28169102]
[1752727378598,0.72,170.99,170.98,3.22169102]
[1752727378783,0.72,170.99,170.97,26.06]
[1752727378989,0.72,170.99,170.98,3.22169102]
[1752727379191,5.94809664,171.0,170.98,3.22169102]
[1752727379501,6.66809664,171.0,170.98,3.22169102]
[1752727379804,5.94809664,171.0,170.98,3.91169102]
[1752727380310,5.94809664,171.0,170.99,3.22169102]
[1752727380479,5.94809664,171.0,170.98,0.69]
[1752727380684,5.94809664,171.0,170.99,3.22169102]
[1752727381093,5.94809664,171.0,170.99,5.03464107]
[1752727381999,6.66809664,171.0,170.98,5.03464107]
[1752727382186,6.66809664,171.0,170.97,26.75]
[1752727382393,6.66809664,171.0,170.98,5.03464107]
[1752727384576,5.94809664,171.0,170.98,5.72464107]
[1752727385696,0.1,171.0,170.99,5.72464107]
[1752727386298,5.94795321,171.0,170.99,5.72464107]
[1752727386495,5.94795321,171.0,170.99,5.03464107]
[1752727386895,5.94795321,171.0,170.99,5.72464107]
[1752727386896,0.1,171.0,170.99,5.72464107]
[1752727387206,5.94795321,171.0,170.97,26.06]
[1752727387401,5.94795321,171.0,170.99,5.03464107]
[1752727387887,0.1,171.0,170.99,5.72464107]
[1752727390889,5.94795321,171.0,170.99,5.03464107]
[1752727391108,5.94795321,171.0,170.97,56.47]
[1752727391307,5.94795321,171.0,170.99,5.03464107]
[1752727392020,0.1,171.0,170.99,31.72464107]
[1752727393720,5.94795321,171.0,170.99,26.0]
[1752727393926,5.94795321,171.0,170.99,31.03464107]
[1752727395428,5.94795321,171.0,170.98,0.69]
[1752727395593,5.94795321,171.0,170.99,5.03464107]
[1752727395796,5.94795321,171.0,170.99,5.72464107]
[1752727397198,0.1,171.0,170.99,5.72464107]
[1752727398604,0.1,171.0,170.99,0.69]
[1752727398800,0.1,171.0,170.99,5.72464107]
[1752727401512,0.1,171.0,170.99,31.72464107]
[1752727405347,0.1,171.0,170.99,26.69]
[1752727405532,0.1,171.0,170.99,31.72464107]
[1752727409054,0.1,171.0,170.99,29.91148281]
[1752727413846,5.94802365,171.0,170.99,29.22148281]
[1752727418854,6.63802365,171.0,170.99,3.22148281]
[1752727421437,5.94802365,171.0,170.99,3.22148281]
[1752727421631,5.94802365,171.0,170.99,3.91148281]
[1752727421826,5.94802365,171.0,170.97,26.06]
[1752727422049,6.63802365,171.0,170.99,3.22148281]
[1752727422351,5.94802365,171.0,170.99,3.22148281]
[1752727423255,6.63802365,171.0,170.99,3.22148281]
[1752727424152,5.94802365,171.0,170.99,3.22148281]
[1752727426765,0.1,171.0,170.99,29.91148281]
[1752727430477,0.1,171.0,170.99,26.69]
[1752727430682,0.1,171.0,170.99,29.91148281]
[1752727431996,5.94795321,171.0,170.99,3.22148281]
[1752727432309,6.63795321,171.0,170.99,3.22148281]
[1752727432460,5.94795321,171.0,170.99,3.22148281]
[1752727436584,6.64795321,171.0,170.97,3.28148281]
[1752727436757,0.7,170.99,170.97,0.06]
[1752727437566,16.78468397,170.98,170.97,0.06]
[1752727437972,20.70616678,170.98,170.97,0.06]
[1752727438579,26.55480404,170.98,170.97,0.06]
[1752727439163,70.41958353,170.98,170.91,3.22148281]
[1752727439356,3.22148281,170.95,170.91,3.22148281]
[1752727439562,0.7,170.94,170.91,3.22148281]
[1752727439794,0.7,170.93,170.9,29.28148281]
[1752727440013,0.7,170.93,170.9,0.06]
[1752727440606,20.00616678,170.92,170.9,0.06]
[1752727440816,6.5510327,170.91,170.9,0.06]
[1752727441002,56.23719948,170.91,170.9,1e-08]
[1752727441519,36.2310327,170.91,170.9,1e-08]
[1752727443183,58.0573945,170.91,170.9,1e-08]
[1752727444406,53.01571667,170.91,170.9,1e-08]
[1752727446388,35.5310327,170.91,170.9,1e-08]
[1752727446990,36.2310327,170.91,170.9,1e-08]
[1752727450900,53.01571667,170.91,170.9,1e-08]
[1752727451135,58.0573945,170.91,170.9,1e-08]
[1752727454891,60.94708149,170.91,170.9,1e-08]
[1752727455308,53.01571667,170.91,170.9,1e-08]
[1752727455606,58.0573945,170.91,170.9,1e-08]
[1752727456306,52.31571667,170.91,170.9,1e-08]
[1752727456504,52.31571667,170.91,170.9,5.75167784]
[1752727456505,35.5310327,170.91,170.9,5.75167784]
[1752727458596,5.8510327,170.91,170.9,5.75167784]
[1752727458800,5.85034809,170.93,170.9,5.75167784]
[1752727459006,35.55034809,170.93,170.92,5.04167783]
[1752727459212,35.55034809,170.93,170.92,5.75167783]
[1752727459512,5.85034809,170.93,170.92,5.75167783]
[1752727460296,5.85000585,170.94,170.92,5.75167783]
[1752727460487,5.85000585,170.94,170.93,5.75167783]
[1752727462714,5.85000585,170.94,170.93,5.04167783]
[1752727463502,37.5,170.99,170.93,5.75167783]
[1752727463708,29.7,170.98,170.96,5.04167783]
[1752727464909,35.54863726,170.98,170.96,5.04167783]
[1752727466022,35.54863726,170.98,170.96,5.72167783]
[1752727466221,35.54863726,170.98,170.97,5.72167783]
[1752727466429,35.54863726,170.98,170.97,5.04167783]
[1752727466627,35.54863726,170.98,170.95,0.68]
[1752727466628,35.54863726,170.98,170.96,5.04167783]
[1752727467035,36.21863726,170.98,170.95,0.68]
[1752727467328,0.67,170.97,170.94,5.04167783]
[1752727467626,29.68,170.96,170.94,5.04167783]
[1752727467931,29.68,170.95,170.94,5.04167783]
[1752727469130,35.52966364,170.95,170.94,5.04167783]
[1752727470010,35.52966364,170.95,170.94,5.72167783]
[1752727470216,5.84966364,170.95,170.94,5.72167783]
[1752727471509,29.68,170.96,170.94,5.72167783]
[1752727471709,35.5293349,170.96,170.95,5.72167783]
[1752727471931,5.8493349,170.96,170.95,5.72167783]
[1752727472935,5.8493349,170.96,170.95,5.04167783]
[1752727473119,35.5293349,170.96,170.92,0.68]
[1752727473310,36.1993349,170.96,170.94,5.04167783]
[1752727473505,36.1993349,170.96,170.92,26.68]
[1752727473506,35.5293349,170.96,170.95,5.04167783]
[1752727474007,35.5293349,170.96,170.95,5.72167783]
[1752727474743,5.8493349,170.96,170.95,5.72167783]
[1752727476022,5.8493349,170.96,170.95,5.04167783]
[1752727482639,5.8493349,170.96,170.95,0.68]
[1752727482824,5.8493349,170.96,170.95,5.04167783]
[1752727483542,5.8793349,170.96,170.95,5.04167783]
[1752727486537,5.8793349,170.96,170.95,5.72167783]
[1752727487748,5.8793349,170.96,170.95,5.04167783]
[1752727489820,5.8793349,170.96,170.92,26.0]
[1752727489821,21.17263859,170.96,170.92,26.0]
[1752727490026,30.35,170.95,170.93,5.04167783]
[1752727491820,5.85000585,170.94,170.93,5.04167783]
[1752727493647,6.52000585,170.94,170.92,5.04167783]
[1752727493832,29.68,170.93,170.92,5.04167783]
[1752727495128,29.68,170.93,170.92,5.72167783]
[1752727495634,29.68,170.94,170.92,5.72167783]
[1752727495840,29.68,170.94,170.93,5.04167783]
[1752727496843,35.53000585,170.94,170.93,5.04167783]
[1752727497951,35.53000585,170.94,170.9,26.68000001]
[1752727498146,17.50468397,170.93,170.9,5.04167784]
[1752727498351,30.4,170.92,170.9,5.04167784]
[1752727498534,30.4,170.92,170.9,1e-08]
[1752727499032,5.8510327,170.91,170.9,1e-08]
[1752727499255,6.5710327,170.91,170.9,1e-08]
[1752727499452,28.3973945,170.91,170.9,1e-08]
[1752727500039,23.35571667,170.91,170.9,1e-08]
[1752727500239,28.3973945,170.91,170.9,1e-08]
[1752727500453,23.35571667,170.91,170.9,1e-08]
[1752727500652,23.35571667,170.91,170.9,5.72167784]
[1752727500653,5.8510327,170.91,170.9,5.72167784]
[1752727501053,5.8510327,170.91,170.9,0.68000001]
[1752727501249,5.8510327,170.91,170.9,1e-08]
[1752727501457,5.8510327,170.91,170.9,5.04167784]
[1752727502482,5.8510327,170.91,170.9,1e-08]
[1752727504151,5.85074286,170.92,170.9,5.72167784]
[1752727504353,52.14279174,170.97,170.91,5.72167783]
[1752727504663,52.14279174,170.97,170.95,5.04167783]
[1752727504664,5.87932147,170.96,170.95,5.04167783]
[1752727504855,35.55932147,170.96,170.95,5.04167783]
[1752727505051,5.87932147,170.96,170.95,5.72167783]
[1752727505569,5.87932147,170.96,170.95,5.04167783]
[1752727507174,5.87932147,170.96,170.94,5.04167783]
[1752727507354,35.52966364,170.95,170.94,5.04167783]
[1752727508353,36.24966364,170.95,170.93,5.04167783]
[1752727508550,36.24966364,170.95,170.92,5.04167783]
[1752727508764,21.8263618,170.93,170.9,1e-08]
[1752727509076,16.78468397,170.91,170.9,1e-08]
[1752727509377,22.63571667,170.91,170.9,1e-08]
[1752727510267,23.35571667,170.91,170.9,1e-08]
[1752727511271,28.3973945,170.91,170.9,1e-08]
[1752727517670,23.35571667,170.91,170.9,1e-08]
[1752727518079,28.3973945,170.91,170.9,1e-08]
[1752727518983,58.0773945,170.91,170.9,1e-08]
[1752727519670,53.03571667,170.91,170.9,1e-08]
[1752727519882,58.0773945,170.91,170.9,1e-08]
[1752727520363,28.3973945,170.91,170.9,1e-08]
[1752727520687,58.0773945,170.91,170.9,1e-08]
[1752727522173,63.11907233,170.91,170.9,1e-08]
[1752727522383,64.67177233,170.91,170.9,1e-08]
[1752727524194,16.78468397,170.87,170.84,0.06]
[1752727524405,16.78468397,170.84,170.83,0.06]
[1752727524686,46.46468397,170.84,170.83,0.06]
[1752727524887,46.46468397,170.84,170.83,0.76]
[1752727525263,29.68,170.84,170.83,5.80167783]
[1752727525998,35.53343011,170.84,170.83,5.80167783]
[1752727527287,20.48460727,170.86,170.83,5.80167783]
[1752727527493,20.48460727,170.86,170.84,0.7]
[1752727527677,29.68,170.85,170.84,0.7]
[1752727529269,35.5330875,170.85,170.84,0.7]
[1752727530798,35.5330875,170.85,170.83,5.10167783]
[1752727530987,35.5330875,170.85,170.83,5.80167783]
[1752727531706,35.5330875,170.85,170.84,0.7]
[1752727532593,35.5330875,170.85,170.83,5.10167783]
[1752727532791,35.5330875,170.85,170.83,5.80167783]
[1752727533804,5.8530875,170.85,170.83,5.80167783]
[1752727533993,29.68,170.84,170.83,5.80167783]
[1752727534304,5.8530875,170.85,170.83,5.80167783]
[1752727534506,5.8530875,170.85,170.84,0.7]
[1752727534702,5.8530875,170.85,170.84,5.74167783]
[1752727535003,35.5330875,170.85,170.84,5.74167783]
[1752727536018,35.5330875,170.85,170.84,5.04167783]
[1752727536714,35.5330875,170.85,170.83,5.80167783]
[1752727538801,35.5330875,170.85,170.83,5.10167783]
[1752727538992,35.5330875,170.85,170.84,0.7]
[1752727539187,35.5330875,170.85,170.84,5.74167783]
[1752727540513,5.8530875,170.85,170.84,5.74167783]
[1752727540716,35.5330875,170.85,170.84,5.74167783]
[1752727541421,5.8530875,170.85,170.84,5.74167783]
[1752727541628,35.5330875,170.85,170.84,5.74167783]
[1752727541999,35.5330875,170.85,170.83,5.10167783]
[1752727542304,35.5330875,170.85,170.83,5.80167783]
[1752727542840,36.2130875,170.85,170.83,5.10167783]
[1752727542996,17.46468397,170.84,170.83,0.06]
[1752727544031,22.63811408,170.84,170.83,0.06]
[1752727544802,22.63811408,170.84,170.83,0.76]
[1752727545904,22.63811408,170.84,170.83,5.80167783]
[1752727547419,5.85343011,170.84,170.83,5.80167783]
[1752727548746,66.48,170.85,170.83,5.80167783]
[1752727548920,36.8,170.85,170.84,5.74167783]
[1752727549118,36.8,170.85,170.84,12.32537783]
[1752727549302,0.03,170.85,170.84,38.32537783]
[1752727549497,36.83,170.91,170.84,38.32537783]
[1752727549723,5.8810327,170.91,170.9,5.04167783]
[1752727549907,35.5610327,170.91,170.9,5.04167783]
[1752727550109,35.5610327,170.91,170.9,5.74167783]
[1752727550703,5.8810327,170.91,170.9,5.74167783]
[1752727551004,52.34571667,170.91,170.87,0.7]
[1752727551205,16.78468397,170.9,170.88,5.04167783]
[1752727551424,29.68,170.89,170.88,0.7]
[1752727551727,29.68,170.89,170.88,5.74167783]
[1752727551898,5.8810327,170.91,170.88,5.74167783]
[1752727552100,29.68,170.9,170.89,0.7]
[1752727552515,29.68,170.9,170.89,5.04167783]
[1752727552721,35.53137507,170.9,170.89,5.04167783]
[1752727553409,50.83981275,170.9,170.88,5.04167783]
[1752727554023,50.15981275,170.9,170.88,5.04167783]
[1752727555133,50.85981275,170.9,170.87,5.04167783]
[1752727555509,50.85981275,170.9,170.87,5.74167783]
[1752727555910,50.15981275,170.9,170.88,5.04167783]
[1752727556624,50.15981275,170.9,170.88,5.74167783]
[1752727556828,35.53137507,170.9,170.89,5.04167783]
[1752727557006,35.53137507,170.9,170.89,5.74167783]
[1752727557333,29.68,170.9,170.89,5.74167783]
[1752727557507,5.88116043,170.91,170.89,5.74167783]
[1752727557711,35.54116043,170.91,170.9,5.74167783]
[1752727558605,0.03,170.91,170.9,5.74167783]
[1752727558806,0.03,170.91,170.9,31.74167783]
[1752727561148,0.03,170.91,170.9,5.74167783]
[1752727562246,5.8810327,170.91,170.9,5.74167783]
[1752727562430,5.8810327,170.91,170.9,5.04167783]
[1752727563156,5.8810327,170.91,170.9,5.74167783]
[1752727564164,0.03,170.91,170.9,5.74167783]
[1752727578862,0.03,170.91,170.9,0.7]
[1752727579057,0.03,170.91,170.9,5.74167783]
[1752727587369,0.7,170.91,170.88,5.04167783]
[1752727587954,0.67,170.9,170.88,5.04167783]
[1752727588279,0.03,170.91,170.89,5.69167783]
[1752727588473,5.88116752,170.91,170.9,5.69167783]
[1752727589585,0.03,170.91,170.9,5.69167783]
[1752727590072,5.8810327,170.91,170.9,5.69167783]
[1752727590280,0.03,170.91,170.9,5.69167783]
[1752727599487,0.03,170.91,170.9,10.73335566]
[1752727599868,0.03,170.91,170.9,16.75835566]
[1752727600059,0.03,170.96,170.93,26.0]
[1752727600260,0.03,170.96,170.95,5.04167783]
[1752727600686,0.03,170.96,170.95,5.69167783]
[1752727601070,5.87932147,170.96,170.95,5.69167783]
[1752727601273,5.87932147,170.96,170.95,5.04167783]
[1752727601492,0.03,170.96,170.95,5.69167783]
[1752727603491,0.03,170.96,170.95,5.04167783]
[1752727604771,0.03,170.96,170.93,26.0]
[1752727604977,0.03,170.96,170.95,5.04167783]
[1752727605785,0.03,170.96,170.95,5.69167783]
[1752727608590,0.03,170.96,170.93,26.0]
[1752727608591,0.7,170.96,170.93,26.0]
[1752727608762,0.7,170.96,170.95,5.04167783]
[1752727608964,0.03,170.96,170.95,5.04167783]
[1752727610679,6.54932147,170.96,170.95,5.04167783]
[1752727610875,6.54932147,170.96,170.92,0.65]
[1752727611074,0.67,170.95,170.92,5.04167783]
[1752727611276,46.42468397,170.94,170.91,5.04167783]
[1752727611490,0.67,170.93,170.9,5.04167783]
[1752727611802,21.8263618,170.92,170.88,5.04167783]
[1752727611970,29.64,170.91,170.88,5.04167783]
[1752727612269,0.67,170.9,170.88,5.04167783]
[1752727612691,5.85171747,170.89,170.88,5.04167783]
[1752727612892,6.52171747,170.89,170.88,5.04167783]
[1752727613473,5.85171747,170.89,170.88,5.04167783]
[1752727614679,5.85137507,170.9,170.88,5.04167783]
[1752727614884,5.85137507,170.9,170.88,5.10167783]
[1752727615391,6.55137507,170.9,170.88,5.10167783]
[1752727617290,5.85137507,170.9,170.88,5.10167783]
[1752727617478,0.7,170.89,170.88,5.10167783]
[1752727617682,6.55171747,170.89,170.88,5.10167783]
[1752727619483,5.85171747,170.89,170.88,5.10167783]
[1752727622902,5.85171747,170.89,170.88,5.76167783]
[1752727623103,5.85115961,170.91,170.88,5.76167783]
[1752727623305,5.85115961,170.91,170.9,5.04167783]
[1752727623607,5.85115961,170.91,170.9,5.70167783]
[1752727625406,5.85115961,170.91,170.9,0.66]
[1752727625602,5.85115961,170.91,170.9,5.70167783]
[1752727626794,5.85115961,170.91,170.9,5.04167783]
[1752727629214,5.85115961,170.91,170.9,5.70167783]
[1752727629900,5.85115961,170.91,170.9,5.04167783]
[1752727630433,5.85069038,170.92,170.9,5.04167783]
[1752727630587,5.85069038,170.92,170.91,5.04167783]
[1752727632501,6.55069038,170.92,170.91,5.04167783]
[1752727632805,21.17741633,170.92,170.88,0.06]
[1752727633110,20.47741633,170.92,170.91,5.04167783]
[1752727633609,21.17741633,170.92,170.91,5.04167783]
[1752727634930,21.17741633,170.92,170.88,0.72]
[1752727635143,36.1910327,170.91,170.9,5.04167783]
[1752727636415,36.2210327,170.91,170.9,5.04167783]
[1752727636608,50.84861446,170.91,170.89,5.04167783]
[1752727636909,0.7,170.9,170.89,5.04167783]
[1752727637724,0.7,170.9,170.88,5.10167783]
[1752727637896,50.14861446,170.91,170.88,5.10167783]
[1752727638223,5.85171747,170.89,170.88,5.10167783]
[1752727638430,35.49171747,170.89,170.88,5.10167783]
[1752727641123,5.85171747,170.89,170.88,5.76167783]
[1752727642907,5.85171747,170.89,170.88,5.10167783]
[1752727644327,5.85171747,170.89,170.88,5.76167783]
[1752727647616,6.54171747,170.89,170.88,5.10167783]
[1752727647929,6.54171747,170.89,170.88,0.06]
[1752727648336,23.32640144,170.89,170.88,0.06]
[1752727649009,23.32640144,170.89,170.88,5.10167783]
[1752727649314,5.85171747,170.89,170.88,5.76167783]
[1752727651716,5.85171747,170.89,170.88,0.72]
[1752727651917,5.85171747,170.89,170.88,5.76167783]
[1752727652118,35.49145604,170.9,170.88,5.76167783]
[1752727652436,5.85145604,170.9,170.88,5.10167783]
[1752727652614,35.49145604,170.9,170.89,5.70167783]
[1752727652929,35.49145604,170.9,170.89,3.88556012]
[1752727653135,5.85145604,170.9,170.89,3.88556012]
[1752727653641,5.85145604,170.9,170.89,3.22556012]
[1752727654138,5.85145604,170.9,170.89,3.88556012]
[1752727654314,35.52105852,170.91,170.89,3.88556012]
[1752727654515,35.52105852,170.91,170.9,3.88556012]
[1752727655029,0.03,170.91,170.9,3.88556012]
[1752727655416,5.8810327,170.91,170.9,3.88556012]
[1752727657137,6.5710327,170.91,170.9,5.03922587]
[1752727657440,35.5210327,170.91,170.9,5.03922587]
[1752727658612,35.5210327,170.91,170.9,5.00717125]
[1752727662219,29.67,170.91,170.9,5.66717125]
[1752727662934,35.5210327,170.91,170.9,5.66717125]
[1752727663449,35.5210327,170.91,170.9,5.00717125]
[1752727664520,36.2110327,170.91,170.9,5.00717125]
[1752727664727,36.2110327,170.91,170.89,5.03922587]
[1752727664933,0.69,170.9,170.89,5.03922587]
[1752727665432,0.69,170.9,170.88,0.06]
[1752727665634,29.64,170.89,170.88,0.06]
[1752727666042,30.33,170.89,170.88,0.06]
[1752727666830,52.96640144,170.89,170.88,0.06]
[1752727667631,58.00562731,170.89,170.88,0.06]
[1752727668227,58.00562731,170.89,170.88,1e-08]
[1752727668943,16.78468397,170.88,170.85,1e-08]
[1752727669137,21.82390984,170.86,170.85,1e-08]
[1752727669626,22.51390984,170.86,170.85,1e-08]
[1752727670853,28.36665477,170.86,170.85,1e-08]
[1752727672331,21.82390984,170.84,170.83,1e-08]
[1752727672533,16.78468397,170.83,170.81,1e-08]
[1752727672720,16.78468397,170.81,170.8,1e-08]
[1752727673027,22.63914213,170.81,170.8,1e-08]
[1752727673232,35.49445816,170.81,170.8,5.03922588]
[1752727673430,35.49445816,170.81,170.8,1e-08]
[1752727673638,35.49445816,170.81,170.8,5.03922588]
[1752727674048,35.49445816,170.81,170.8,1e-08]
[1752727675352,35.49445816,170.81,170.8,5.03922588]
[1752727676538,35.49445816,170.81,170.8,5.72922588]
[1752727676734,5.85421913,170.82,170.8,5.72922588]
[1752727676958,35.49421913,170.82,170.81,5.72922587]
[1752727677338,5.85421913,170.82,170.81,5.72922587]
[1752727678551,16.78468397,170.81,170.8,1e-08]
[1752727678847,47.07468397,170.81,170.8,1e-08]
[1752727679528,52.92914213,170.81,170.8,1e-08]
[1752727680252,52.92914213,170.81,170.78,0.06]
[1752727680431,0.65,170.8,170.78,0.06]
[1752727680631,29.64,170.79,170.78,0.06]
[1752727680831,30.29,170.79,170.78,0.06]
[1752727681644,35.49514374,170.79,170.78,0.06]
[1752727682229,36.14514374,170.79,170.78,0.06]
[1752727682746,35.49514374,170.79,170.78,0.06]
[1752727683049,35.49514374,170.79,170.78,5.78922587]
[1752727687860,35.49514374,170.79,170.78,5.09922587]
[1752727689459,52.92982771,170.79,170.78,0.06]
[1752727694367,52.27982771,170.79,170.78,0.06]
[1752727694967,16.78468397,170.78,170.77,0.06]
[1752727695156,22.47390984,170.78,170.76,0.06]
[1752727695360,30.31,170.77,170.76,0.06]
[1752727695565,67.11,170.77,170.76,0.06]
[1752727697265,72.96582947,170.77,170.76,0.06]
[1752727702053,42.65582947,170.77,170.76,0.06]
[1752727702253,89.10051344,170.77,170.76,0.06]
[1752727702873,5.85480093,170.8,170.76,5.78922587]
[1752727703053,0.03,170.78,170.77,0.69]
[1752727703250,0.03,170.78,170.77,5.72922587]
[1752727703473,0.03,170.78,170.77,31.72922587]
[1752727705283,0.03,170.78,170.77,5.72922587]
[1752727707876,0.03,170.78,170.77,11.58505534]
[1752727708087,35.51382622,170.83,170.77,11.58505534]
[1752727708276,14.63245317,170.86,170.82,5.03922587]
[1752727708474,29.68,170.85,170.8,26.0]
[1752727708680,29.68,170.85,170.83,0.69]
[1752727708976,29.68,170.85,170.84,0.69]
[1752727709283,35.5330875,170.85,170.84,0.69]
[1752727709783,35.5330875,170.85,170.84,5.72922587]
[1752727710076,35.5330875,170.85,170.84,5.03922587]
[1752727711094,35.5330875,170.85,170.84,5.72922587]
[1752727711587,35.5330875,170.85,170.84,5.03922587]
[1752727713485,35.5330875,170.85,170.84,6.07525287]
[1752727714781,52.31777147,170.85,170.76,0.06]
[1752727714988,16.78468397,170.83,170.8,5.03922587]
[1752727715191,29.7,170.82,170.8,5.03922587]
[1752727716488,29.7,170.82,170.79,0.69]
[1752727716689,29.7,170.82,170.8,5.03922587]
[1752727716874,5.85445816,170.81,170.77,26.69]
[1752727717183,5.85445816,170.81,170.8,5.03922587]
[1752727717389,35.55445816,170.81,170.8,5.03922587]
[1752727718690,35.55445816,170.81,170.8,5.72922587]
[1752727719277,35.55445816,170.81,170.8,5.03922587]
[1752727720984,35.55445816,170.81,170.79,5.03922587]
[1752727722101,50.19060358,170.81,170.77,0.69]
[1752727722276,5.85445816,170.81,170.8,5.72922587]
[1752727722673,66.5,170.84,170.8,5.72922587]
[1752727722993,5.85240241,170.87,170.83,5.03922587]
[1752727723175,35.55240241,170.87,170.86,5.03922587]
[1752727723514,5.85240241,170.87,170.86,5.72922587]
[1752727724501,5.85205992,170.88,170.86,5.72922587]
[1752727724675,5.85205992,170.88,170.87,5.72922587]
[1752727725103,5.85205992,170.88,170.87,0.69]